{"text_format":"3","workbook":"xlsx","n_sheets":1,"sheets":["SPIS WYPOSAŻENIA"],"not_rendered":{"defined_names":5},"read":"whole","date_system":"1900"}

{"sheet":"SPIS WYPOSAŻENIA","index":0,"n_rows":9,"n_cols":19,"rows_kept":9,"merged":[[0,1,0,5],[0,6,0,9],[0,10,0,12],[0,13,0,14],[2,1,2,6],[2,7,2,18]]}
[null,"SPIS WYPOSAŻENIA"]
[]
[null,"STAN FIZYCZNY",{"$nulls":5},"STAN FINANSOWY"]
[null,"Numer seryjny lub identyfikator składnika aktywów","Opis elementu (marka i model)","Lokalizacja","Stan","Dostawca","Pozostały okres eksploatacji w latach ","Wartość początkowa","Wpłata początkowa","Data zakupu lub dzierżawy","Okres kredytowania w latach","Oprocentowanie","Miesięczna rata","Miesięczne koszty operacyjne","Łączny koszt miesięczny","Oczekiwana wartość na koniec okresu kredytowania","Roczna amortyzacja liniowa","Miesięczna amortyzacja liniowa","Wartość bieżąca"]
[null,123,"Marka i model","Oddział główny","Dobry","lokalne",5,{"v":90000,"d":"90,000.00 zł"},{"v":15000,"d":"15,000.00 zł"},{"$f":"DATE(YEAR(TODAY())-2, 1,1)","v":"2016-01-01"},4,{"v":0.1,"d":"10.00%"},{"$f":"IFERROR(IF(AND(Dane[[#This Row],[Wartość początkowa]]>0,Dane[[#This Row],[Wartość początkowa]]<>Dane[[#This Row],[Wpłata początkowa]]),-1*PMT(Dane[[#This Row],[Oprocentowanie]]/12,Dane[[#This Row],[Okres kredytowania w latach]]*12,Dane[[#This Row],[Wartość początkowa]]-Dane[[#This Row],[Wpłata początkowa]]),0),0)","v":{"v":1902.193757606039,"d":"1,902.19 zł"}},{"v":600,"d":"600.00 zł"},{"$f":"IFERROR(Dane[[#This Row],[Miesięczne koszty operacyjne]]+Dane[[#This Row],[Miesięczna rata]],\"\")","v":{"v":2502.193757606039,"d":"2,502.19 zł"}},{"v":60000,"d":"60,000.00 zł"},{"$f":"IFERROR(IF(Dane[[#This Row],[Wartość początkowa]]>0,SLN(Dane[[#This Row],[Wartość początkowa]],Dane[[#This Row],[Oczekiwana wartość na koniec okresu kredytowania]],Dane[[#This Row],[Pozostały okres eksploatacji w latach ]]),0),0)","v":{"v":6000,"d":"6,000.00 zł"}},{"$f":"IFERROR(Dane[[#This Row],[Roczna amortyzacja liniowa]]/12,0)","v":{"v":500,"d":"500.00 zł"}},{"$f":"IFERROR(Dane[[#This Row],[Wartość początkowa]]-(Dane[[#This Row],[Roczna amortyzacja liniowa]]*((TODAY()-Dane[[#This Row],[Data zakupu lub dzierżawy]])/365)),0)","v":{"v":75041.09589041096,"d":"75,041.10 zł"}}]
[null,456,"Marka i model","Oddział główny","Doskonały","lokalne",3,{"v":15000,"d":"15,000.00 zł"},{"v":15000,"d":"15,000.00 zł"},{"$f":"DATE(YEAR(TODAY())-1, 1,1)","v":"2017-01-01"},null,null,{"$f":"IFERROR(IF(AND(Dane[[#This Row],[Wartość początkowa]]>0,Dane[[#This Row],[Wartość początkowa]]<>Dane[[#This Row],[Wpłata początkowa]]),-1*PMT(Dane[[#This Row],[Oprocentowanie]]/12,Dane[[#This Row],[Okres kredytowania w latach]]*12,Dane[[#This Row],[Wartość początkowa]]-Dane[[#This Row],[Wpłata początkowa]]),0),0)","v":{"v":0,"d":"0.00 zł"}},{"v":60,"d":"60.00 zł"},{"$f":"IFERROR(Dane[[#This Row],[Miesięczne koszty operacyjne]]+Dane[[#This Row],[Miesięczna rata]],\"\")","v":{"v":60,"d":"60.00 zł"}},null,{"$f":"IFERROR(IF(Dane[[#This Row],[Wartość początkowa]]>0,SLN(Dane[[#This Row],[Wartość początkowa]],Dane[[#This Row],[Oczekiwana wartość na koniec okresu kredytowania]],Dane[[#This Row],[Pozostały okres eksploatacji w latach ]]),0),0)","v":{"v":5000,"d":"5,000.00 zł"}},{"$f":"IFERROR(Dane[[#This Row],[Roczna amortyzacja liniowa]]/12,0)","v":{"v":416.6666666666667,"d":"416.67 zł"}},{"$f":"IFERROR(Dane[[#This Row],[Wartość początkowa]]-(Dane[[#This Row],[Roczna amortyzacja liniowa]]*((TODAY()-Dane[[#This Row],[Data zakupu lub dzierżawy]])/365)),0)","v":{"v":7547.945205479452,"d":"7,547.95 zł"}}]
[null,789,"Marka i model","Oddział wschodni","Dostateczny","lokalne",6,{"v":150000,"d":"150,000.00 zł"},{"v":60000,"d":"60,000.00 zł"},{"$f":"TODAY()","v":"2018-06-29"},5,{"v":0.05,"d":"5.00%"},{"$f":"IFERROR(IF(AND(Dane[[#This Row],[Wartość początkowa]]>0,Dane[[#This Row],[Wartość początkowa]]<>Dane[[#This Row],[Wpłata początkowa]]),-1*PMT(Dane[[#This Row],[Oprocentowanie]]/12,Dane[[#This Row],[Okres kredytowania w latach]]*12,Dane[[#This Row],[Wartość początkowa]]-Dane[[#This Row],[Wpłata początkowa]]),0),0)","v":{"v":1698.4110279609843,"d":"1,698.41 zł"}},{"v":120,"d":"120.00 zł"},{"$f":"IFERROR(Dane[[#This Row],[Miesięczne koszty operacyjne]]+Dane[[#This Row],[Miesięczna rata]],\"\")","v":{"v":1818.4110279609843,"d":"1,818.41 zł"}},{"v":4500,"d":"4,500.00 zł"},{"$f":"IFERROR(IF(Dane[[#This Row],[Wartość początkowa]]>0,SLN(Dane[[#This Row],[Wartość początkowa]],Dane[[#This Row],[Oczekiwana wartość na koniec okresu kredytowania]],Dane[[#This Row],[Pozostały okres eksploatacji w latach ]]),0),0)","v":{"v":24250,"d":"24,250.00 zł"}},{"$f":"IFERROR(Dane[[#This Row],[Roczna amortyzacja liniowa]]/12,0)","v":{"v":2020.8333333333333,"d":"2,020.83 zł"}},{"$f":"IFERROR(Dane[[#This Row],[Wartość początkowa]]-(Dane[[#This Row],[Roczna amortyzacja liniowa]]*((TODAY()-Dane[[#This Row],[Data zakupu lub dzierżawy]])/365)),0)","v":{"v":150000,"d":"150,000.00 zł"}}]
[{"$nulls":12},{"$f":"IFERROR(IF(AND(Dane[[#This Row],[Wartość początkowa]]>0,Dane[[#This Row],[Wartość początkowa]]<>Dane[[#This Row],[Wpłata początkowa]]),-1*PMT(Dane[[#This Row],[Oprocentowanie]]/12,Dane[[#This Row],[Okres kredytowania w latach]]*12,Dane[[#This Row],[Wartość początkowa]]-Dane[[#This Row],[Wpłata początkowa]]),0),0)","v":{"v":0,"d":"0.00 zł"}},null,{"$f":"IFERROR(Dane[[#This Row],[Miesięczne koszty operacyjne]]+Dane[[#This Row],[Miesięczna rata]],\"\")","v":{"v":0,"d":"0.00 zł"}},null,{"$f":"IFERROR(IF(Dane[[#This Row],[Wartość początkowa]]>0,SLN(Dane[[#This Row],[Wartość początkowa]],Dane[[#This Row],[Oczekiwana wartość na koniec okresu kredytowania]],Dane[[#This Row],[Pozostały okres eksploatacji w latach ]]),0),0)","v":{"v":0,"d":"0.00 zł"}},{"$f":"IFERROR(Dane[[#This Row],[Roczna amortyzacja liniowa]]/12,0)","v":{"v":0,"d":"0.00 zł"}},{"$f":"IFERROR(Dane[[#This Row],[Wartość początkowa]]-(Dane[[#This Row],[Roczna amortyzacja liniowa]]*((TODAY()-Dane[[#This Row],[Data zakupu lub dzierżawy]])/365)),0)","v":{"v":0,"d":"0.00 zł"}}]
[{"$nulls":12},{"$f":"IFERROR(IF(AND(Dane[[#This Row],[Wartość początkowa]]>0,Dane[[#This Row],[Wartość początkowa]]<>Dane[[#This Row],[Wpłata początkowa]]),-1*PMT(Dane[[#This Row],[Oprocentowanie]]/12,Dane[[#This Row],[Okres kredytowania w latach]]*12,Dane[[#This Row],[Wartość początkowa]]-Dane[[#This Row],[Wpłata początkowa]]),0),0)","v":{"v":0,"d":"0.00 zł"}},null,{"$f":"IFERROR(Dane[[#This Row],[Miesięczne koszty operacyjne]]+Dane[[#This Row],[Miesięczna rata]],\"\")","v":{"v":0,"d":"0.00 zł"}},null,{"$f":"IFERROR(IF(Dane[[#This Row],[Wartość początkowa]]>0,SLN(Dane[[#This Row],[Wartość początkowa]],Dane[[#This Row],[Oczekiwana wartość na koniec okresu kredytowania]],Dane[[#This Row],[Pozostały okres eksploatacji w latach ]]),0),0)","v":{"v":0,"d":"0.00 zł"}},{"$f":"IFERROR(Dane[[#This Row],[Roczna amortyzacja liniowa]]/12,0)","v":{"v":0,"d":"0.00 zł"}},{"$f":"IFERROR(Dane[[#This Row],[Wartość początkowa]]-(Dane[[#This Row],[Roczna amortyzacja liniowa]]*((TODAY()-Dane[[#This Row],[Data zakupu lub dzierżawy]])/365)),0)","v":{"v":0,"d":"0.00 zł"}}]